bitfinex-derivatives/quotes_ETHF0:USTF0_20250701
["timestamp","ask_amount","ask_price","bid_price","bid_amount"]
[1751408606886,28.39441,2407.8,2407.7,5.77978019]
[1751408607194,0.83056,2407.7,2407.5,0.83059]
[1751408607783,0.83056,2407.7,2407.6,2.42922751]
[1751408609089,28.39444,2407.8,2407.6,2.42922751]
[1751408609595,27.04134,2407.8,2407.6,2.42922751]
[1751408609795,27.04134,2407.8,2407.7,0.8988]
[1751408610396,27.04134,2407.8,2407.7,1.72934]
[1751408610695,27.04134,2407.8,2407.7,0.8988]
[1751408614596,0.83055,2407.7,2407.6,3.25979751]
[1751408615298,0.83055,2407.7,2407.6,2.42922751]
[1751408615701,0.83055,2407.7,2407.5,5.77978019]
[1751408615702,0.83058,2407.6,2407.5,5.77978019]
[1751408615895,27.05518,2407.6,2407.5,5.77978019]
[1751408616801,0.83072,2407.2,2407.1,8.28260228]
[1751408616997,26.18872,2407.2,2407.1,8.28260228]
[1751408617702,28.48672,2407.2,2407.1,8.28260228]
[1751408618095,28.48672,2407.2,2407.1,9.11335228]
[1751408618703,28.48672,2407.2,2407.1,8.28260228]
[1751408624199,0.83086,2406.8,2406.7,3.26009751]
[1751408624399,26.18986,2406.8,2406.7,2.42922751]
[1751408624798,26.18986,2406.8,2406.7,3.26011751]
[1751408625000,26.18986,2406.8,2406.7,0.83089]
[1751408625193,26.18986,2406.8,2406.6,10.76738296]
[1751408625194,0.83089,2406.7,2406.6,10.76738296]
[1751408625401,3.14009,2406.7,2406.6,10.76738296]
[1751408625605,0.83099,2406.4,2406.3,16.57449116]
[1751408625812,26.19099,2406.4,2406.3,16.57449116]
[1751408626009,26.19099,2406.4,2406.3,14.14526365]
[1751408627011,26.19099,2406.4,2406.3,14.97629365]
[1751408627310,26.19099,2406.4,2406.3,14.14526365]
[1751408629013,26.19099,2406.4,2406.3,0.8931]
[1751408629510,26.19099,2406.4,2406.3,1.72413]
[1751408629819,26.19099,2406.4,2406.3,0.8931]
[1751408630108,1.7406,2406.7,2406.3,0.8931]
[1751408630309,25.361,2406.6,2406.5,3.26016751]
[1751408630509,26.19192,2406.6,2406.5,2.42922751]
[1751408631108,26.19192,2406.6,2406.5,3.26018751]
[1751408632112,25.361,2406.6,2406.5,3.26018751]
[1751408632509,1.7406,2406.7,2406.6,0.83092]
[1751408632710,38.8936,2406.7,2406.6,0.83092]
[1751408633417,38.87591,2406.7,2406.6,0.83092]
[1751408634116,0.83092,2406.6,2406.5,3.26016751]
[1751408634617,26.19392,2406.6,2406.5,3.26016751]
[1751408634816,25.363,2406.6,2406.5,3.26016751]
[1751408636119,26.19392,2406.6,2406.5,3.26016751]
[1751408637922,25.363,2406.6,2406.5,3.26016751]
[1751408638423,26.19392,2406.6,2406.5,3.26016751]
[1751408638817,0.83092,2406.6,2406.5,3.26016751]
[1751408639017,26.19192,2406.6,2406.5,3.26016751]
[1751408639818,26.19192,2406.6,2406.5,2.42922751]
[1751408642625,26.19192,2406.6,2406.5,3.26018751]
[1751408644624,26.19192,2406.6,2406.5,2.42922751]
[1751408645622,0.83096,2406.5,2406.4,0.83097]
[1751408645825,0.83096,2406.5,2406.4,3.26019751]
[1751408647428,0.83096,2406.5,2406.4,2.42922751]
[1751408648025,0.83103,2406.3,2406.2,3.26026751]
[1751408648223,26.18803,2406.3,2406.2,2.42922751]
[1751408649524,26.18803,2406.3,2406.2,3.26028751]
[1751408650030,25.357,2406.3,2406.2,3.26028751]
[1751408650425,26.18803,2406.3,2406.2,3.26028751]
[1751408650730,27.10323,2406.3,2406.2,3.26028751]
[1751408655535,26.2722,2406.3,2406.2,3.26028751]
[1751408662136,27.10323,2406.3,2406.2,3.26028751]
[1751408662635,26.2722,2406.3,2406.2,3.26028751]
[1751408671143,0.9152,2406.3,2406.2,3.26028751]
[1751408671440,26.2602,2406.3,2406.2,3.26028751]
[1751408672136,27.09123,2406.3,2406.2,3.26028751]
[1751408673030,26.2602,2406.3,2406.0,2.42922751]
[1751408673340,1.3487,2406.2,2406.1,0.83108]
[1751408673742,2.17978,2406.2,2406.1,0.83108]
[1751408675241,1.3487,2406.2,2406.1,0.83108]
[1751408675739,26.2572,2406.3,2406.2,0.83106]
[1751408675935,26.2572,2406.3,2406.2,3.26028751]
[1751408678142,0.9152,2406.3,2406.2,3.26028751]
[1751408679940,2.3521,2406.3,2406.2,3.26028751]
[1751408682239,3.18313,2406.3,2406.2,3.26028751]
[1751408682750,2.3521,2406.3,2406.2,3.26028751]
[1751408684252,2.3521,2406.3,2406.2,0.83106]
[1751408686750,28.51813,2406.3,2406.2,0.83106]
[1751408686951,27.6871,2406.3,2406.2,0.83106]
[1751408695060,28.51813,2406.3,2406.2,0.83106]
[1751408695354,0.83106,2406.2,2406.1,0.8311]
[1751408695553,2.20536,2406.2,2406.0,0.83111]
[1751408695748,2.42922751,2406.1,2405.6,8.25408314]
[1751408695954,0.83124,2405.7,2405.5,0.83129]
[1751408696158,0.9376,2405.6,2405.5,0.83129]
[1751408696355,3.2283,2405.6,2405.5,0.83129]
[1751408699660,0.83123,2405.8,2405.4,4.50753751]
[1751408699661,25.327,2405.8,2405.4,4.50753751]
[1751408699861,25.327,2405.8,2405.6,2.42922751]
[1751408700061,2.21064,2405.7,2405.5,0.83128]
[1751408700258,1.3794,2405.6,2405.5,0.83128]
[1751408700458,2.2771,2405.6,2405.5,0.83128]
[1751408701063,2.2771,2405.6,2405.2,3.39235085]
[1751408701357,0.83137,2405.3,2405.2,0.07232334]
[1751408701553,0.83137,2405.3,2405.1,0.83142]
[1751408701755,0.8081,2405.2,2405.1,0.83142]
[1751408701958,2.1915,2405.2,2405.1,0.83142]
[1751408702567,30.77915751,2405.2,2404.8,0.07235175]
[1751408702863,1.3834,2405.1,2404.8,0.07235175]
[1751408703065,0.83151,2404.9,2404.7,3.26078751]
[1751408703458,0.8081,2404.8,2404.7,3.26078751]
[1751408709067,0.8675,2405.1,2405.0,0.83148]
[1751408709662,3.01884,2405.1,2404.9,3.26071751]
[1751408709867,3.01884,2405.1,2405.0,0.83148]
[1751408710458,2.1874,2405.1,2405.0,0.83148]
[1751408711469,0.83151,2404.9,2404.8,0.83153]
[1751408711866,1.3403,2405.0,2404.5,4.58069649]
[1751408712171,0.83158,2404.8,2404.7,0.83157]
[1751408712570,2.17188,2404.8,2404.7,0.83157]
[1751408714760,1.3403,2404.8,2404.7,0.83157]
[1751408714970,1.3403,2404.8,2404.7,3.26079751]
[1751408715666,0.8675,2405.1,2404.7,4.50813751]
[1751408715873,25.332,2405.0,2404.9,3.26073751]
[1751408716366,25.332,2405.0,2404.8,0.83152]
[1751408716672,1.4614,2404.9,2404.8,0.83152]
[1751408717274,2.29292,2404.9,2404.7,2.42922751]
[1751408717475,1.4614,2404.9,2404.8,0.83155]
[1751408717771,0.8976,2405.0,2404.9,0.83151]
[1751408717976,0.8675,2405.1,2405.0,0.83148]
[1751408718171,26.1985,2405.1,2405.0,0.83148]
[1751408718362,27.02994,2405.1,2405.0,0.83148]
[1751408718567,27.02994,2405.1,2404.9,3.26071751]
[1751408718765,28.49134,2405.1,2404.9,3.26071751]
[1751408719171,3.16034,2405.1,2405.0,0.83148]
[1751408719380,2.3289,2405.1,2405.0,0.83148]
[1751408719578,27.6589,2405.1,2405.0,0.83148]
[1751408720182,26.1975,2405.1,2405.0,0.83148]
[1751408721683,26.1965,2405.1,2405.0,0.83148]
[1751408722083,0.8675,2405.1,2405.0,0.83148]
[1751408722277,26.1965,2405.1,2405.0,0.83148]
[1751408722486,0.83148,2405.0,2404.9,1.69178]
[1751408722681,2.23788,2405.0,2404.9,0.83148]
[1751408722880,1.4064,2405.0,2404.9,0.83148]
[1751408723081,0.83155,2404.8,2404.3,2.07926]
[1751408723285,25.329,2404.7,2404.6,0.8316]
[1751408723984,26.16058,2404.7,2404.6,0.8316]
[1751408724886,25.329,2404.7,2404.6,0.8316]
[1751408725287,0.8358,2404.9,2404.8,0.83155]
[1751408725589,25.329,2404.9,2404.8,3.26077751]
[1751408725888,13.40371,2405.2,2405.0,0.83145]
[1751408726083,25.328,2405.1,2405.0,0.83145]
[1751408727384,11.776,2405.4,2405.3,0.83137]
[1751408727582,37.105,2405.4,2405.3,3.26059751]
[1751408727980,11.776,2405.4,2405.3,3.26059751]
[1751408728177,39.53322751,2405.4,2404.3,4.48908076]
[1751408728379,1.3467,2405.3,2405.0,2.42922751]
[1751408728786,2.17808,2405.3,2405.1,1.69922]
[1751408729288,1.3467,2405.3,2405.1,1.69922]
[1751408729490,1.3467,2405.3,2405.2,0.83141]
[1751408729786,37.93536,2405.4,2405.2,0.83141]
[1751408731492,0.83139,2405.3,2405.1,1.69923]
[1751408731788,0.83139,2405.3,2405.0,2.42922751]
[1751408731789,0.83141,2405.2,2405.0,0.83146]
[1751408731990,25.326,2405.1,2405.0,0.83146]
[1751408734192,0.83141,2405.2,2405.0,0.83146]
[1751408734393,25.326,2405.2,2405.1,1.62484]
[1751408735293,26.15741,2405.2,2405.1,1.62484]
[1751408735489,25.326,2405.2,2405.1,1.62484]
[1751408739799,2.42922751,2405.6,2405.1,1.62484]
[1751408739800,2.0779,2406.0,2405.2,2.07853]
[1751408739991,0.83127,2405.6,2405.3,2.42922751]
[1751408740297,0.83138,2405.3,2405.1,0.7934]
[1751408740491,0.8478,2405.2,2405.1,1.62484]
[1751408741093,2.2704,2405.4,2405.3,0.83137]
[1751408741288,25.323,2405.4,2405.3,0.83137]
[1751408742592,1.68987,2405.6,2405.4,0.83131]
[1751408742790,26.1806,2405.6,2405.5,0.8313]
[1751408743899,0.8586,2405.6,2405.5,0.8313]
[1751408744198,25.321,2405.6,2405.5,0.8313]
[1751408744402,11.769,2405.8,2405.7,0.83124]
[1751408744701,0.8268,2406.0,2405.9,0.83117]
[1751408745000,26.1468,2406.0,2405.9,0.83117]
[1751408745300,60.6704,2406.1,2406.0,0.83113]
[1751408745798,26.1654,2406.1,2406.0,0.83113]
[1751408747201,26.9965,2406.1,2405.9,0.83114]
[1751408747403,0.8454,2406.1,2406.0,0.83113]
[1751408747604,26.1654,2406.1,2406.0,0.83113]
[1751408754414,26.1654,2406.1,2406.0,1.66723]
[1751408756122,0.8454,2406.1,2406.0,1.66723]
[1751408756314,26.1584,2406.1,2406.0,1.66723]
[1751408757318,0.8454,2406.1,2406.0,1.66723]
[1751408757520,12.5938,2406.4,2406.3,0.83103]
[1751408757811,37.9048,2406.4,2406.0,0.8361]
[1751408758017,3.01636,2406.3,2406.1,0.83109]
[1751408758220,1.3957,2406.2,2406.1,0.83109]
[1751408762319,2.22676,2406.2,2406.1,0.83109]
[1751408762519,1.3957,2406.2,2406.1,0.83109]
[1751408762717,2.22676,2406.2,2405.8,2.07793]
[1751408762921,2.22676,2406.2,2406.0,0.8311]
[1751408763221,26.7373,2406.1,2406.0,0.8311]
[1751408765015,26.7373,2406.1,2405.7,5.39380751]
[1751408765221,26.7373,2406.1,2406.0,0.83113]
[1751408768319,26.7373,2406.1,2405.7,3.31572751]
[1751408768525,1.3759,2406.0,2405.9,0.83116]
[1751408768724,2.20703,2406.0,2405.8,0.83117]
[1751408768927,1.7017,2405.9,2405.8,0.83117]
[1751408769225,3.0776,2405.9,2405.8,0.83117]
[1751408769922,12.592,2406.4,2406.2,0.83105]
[1751408770120,26.1489,2406.3,2406.2,0.83105]
[1751408770320,27.5248,2406.3,2406.2,0.83105]
[1751408772028,26.13597,2406.5,2406.3,0.831]
[1751408772221,1.737,2406.4,2406.3,0.831]
[1751408772525,3.102,2406.4,2406.3,0.831]
[1751408773121,3.102,2406.4,2406.3,3.26022751]
[1751408773122,0.881,2406.4,2406.3,3.26022751]
[1751408773519,25.304,2406.5,2406.4,0.83099]
[1751408773719,0.881,2406.6,2406.5,0.83096]
[1751408773924,26.185,2406.6,2406.5,0.83096]
[1751408774124,0.881,2406.6,2406.5,0.83096]
[1751408774324,26.185,2406.6,2406.5,0.83096]
[1751408774929,0.881,2406.6,2406.5,0.83096]
[1751408775230,60.67786,2406.8,2406.7,0.83089]
[1751408775535,59.847,2406.8,2406.7,0.83089]
[1751408775738,86.5234,2406.8,2406.7,0.83089]
[1751408776533,87.3683,2406.8,2406.7,0.83089]
[1751408776739,88.19916,2406.8,2406.7,0.83089]
[1751408777442,87.3683,2406.8,2406.7,0.83089]
[1751408777938,62.0653,2406.8,2406.7,0.83089]
[1751408778139,87.3663,2406.8,2406.7,0.83089]
[1751408778537,0.8449,2406.8,2406.7,3.26011751]
[1751408778741,25.301,2406.8,2406.7,3.26011751]
[1751408778938,14.8914,2407.1,2407.0,0.83079]
[1751408779141,40.1924,2407.1,2407.0,0.83079]
[1751408779438,41.02315,2407.1,2407.0,0.83079]
[1751408779638,27.0416,2407.1,2407.0,0.83079]
[1751408780033,0.862,2407.1,2407.0,0.83079]
[1751408780237,26.163,2407.1,2407.0,0.83079]
[1751408780838,0.862,2407.1,2407.0,0.83079]
[1751408781037,26.161,2407.1,2407.0,0.83079]
[1751408783739,0.862,2407.1,2407.0,0.83079]
[1751408783942,13.2016,2407.3,2407.2,0.83072]
[1751408784131,0.9018,2407.3,2407.2,0.83072]
[1751408784339,26.1988,2407.3,2407.2,0.83072]
[1751408784638,26.1988,2407.3,2407.1,0.83073]
[1751408784834,27.02948,2407.3,2407.1,0.83073]
[1751408785030,27.02948,2407.3,2407.2,0.83072]
[1751408785539,26.1988,2407.3,2407.2,0.83072]
[1751408786238,0.9018,2407.3,2407.2,0.83072]
[1751408786439,26.1978,2407.3,2407.2,0.83072]
[1751408788138,27.02848,2407.3,2407.2,0.83072]
[1751408788339,27.02848,2407.3,2407.1,3.25994751]
[1751408788538,27.02848,2407.3,2407.1,0.83072]
[1751408789137,27.02848,2407.3,2407.1,0.83075]
[1751408789844,0.83072,2407.2,2407.1,0.83075]
[1751408790145,0.8308,2407.0,2406.6,4.50650751]
[1751408790337,0.8308,2407.0,2406.8,0.83086]
[1751408790338,26.1238,2407.0,2406.8,0.83086]
[1751408790541,0.8639,2406.9,2406.8,0.83086]
[1751408792342,1.69472,2406.9,2406.8,0.83086]
[1751408792644,0.8639,2406.9,2406.8,0.83086]
[1751408792937,0.8639,2406.9,2406.7,0.8643]
[1751408792938,1.69472,2406.9,2406.7,0.8643]
[1751408793145,0.83091,2406.7,2406.5,0.83094]
[1751408793340,0.83092,2406.6,2406.5,0.83094]
[1751408793542,28.40711,2406.7,2406.5,0.83094]
[1751408795048,27.49951,2406.7,2406.5,0.83094]
[1751408796647,0.83092,2406.6,2406.5,0.83094]
[1751408796848,0.83092,2406.6,2406.4,3.26019751]
[1751408797049,0.8565,2406.5,2406.4,3.26019751]
[1751408797244,0.18156521,2406.5,2406.4,3.26019751]
[1751408798343,0.18156521,2406.5,2406.3,3.33862751]
[1751408798549,0.18156521,2406.5,2406.4,0.83099]
[1751408799050,1.01252521,2406.5,2406.4,0.83099]
[1751408799442,0.18156521,2406.5,2406.4,0.83099]
[1751408799848,1.01252521,2406.5,2406.4,0.83099]
[1751408800452,0.18156521,2406.5,2406.4,0.83099]
[1751408800646,1.01252521,2406.5,2406.4,0.83099]
[1751408801748,1.01252521,2406.5,2406.3,4.16963751]
[1751408801944,0.83106,2406.2,2406.1,2.42922751]
[1751408802150,0.83111,2406.1,2405.9,0.83114]
[1751408802344,2.29391,2406.1,2405.9,0.83114]
[1751408802548,0.8545,2406.0,2405.9,0.83114]
[1751408806051,0.8545,2406.0,2405.9,2.20324]
[1751408807253,40.20559,2406.5,2406.3,0.83102]
[1751408807554,40.20559,2406.5,2406.4,0.9012]
[1751408811958,38.74279,2406.5,2406.4,1.73219]
[1751408812254,0.8628,2406.5,2406.4,1.73219]
[1751408812450,59.81,2406.8,2406.4,5.40791751]
[1751408812657,25.294,2406.7,2406.6,3.26012751]
[1751408812845,73.75127,2406.8,2406.6,3.26012751]
[1751408813049,25.294,2406.7,2406.6,3.26012751]
[1751408813659,26.12489,2406.7,2406.6,3.26012751]
[1751408813853,26.12489,2406.7,2406.6,2.42922751]
[1751408814158,26.12489,2406.7,2406.5,0.83093]
[1751408814354,27.52709,2406.7,2406.5,0.83093]
[1751408814556,2.23312,2406.6,2406.4,4.16139751]
[1751408814956,2.23312,2406.6,2406.5,0.83096]
[1751408815157,1.4022,2406.6,2406.5,0.83096]
[1751408818262,3.83142751,2406.6,2406.4,0.9012]
[1751408818463,1.70027,2406.5,2406.1,2.98015]
[1751408818665,3.05977,2406.5,2406.3,0.83103]
[1751408818863,26.6515,2406.4,2406.3,0.83103]
[1751408822366,25.292,2406.4,2406.3,0.83103]
[1751408822570,14.9124,2406.7,2406.5,0.83093]
[1751408822764,25.291,2406.6,2406.5,0.83093]
[1751408825662,0.8706,2406.9,2406.4,4.50669751]
[1751408825868,25.29,2406.8,2406.4,4.50669751]
[1751408826165,0.83086,2406.8,2406.7,0.83089]
[1751408826368,25.29,2406.8,2406.7,0.83089]
[1751408827162,1.70145,2406.9,2406.7,0.83089]
[1751408827369,25.29,2406.8,2406.7,0.83089]
[1751408827568,3.04815,2406.9,2406.7,0.83089]
[1751408827870,25.29,2406.8,2406.7,0.83089]
[1751408828171,12.58671,2407.3,2407.1,0.83074]
[1751408828359,26.12072,2407.2,2407.0,3.25998751]
[1751408828563,28.32472,2407.2,2407.0,3.25998751]
[1751408828867,29.16822,2407.2,2407.0,3.25998751]
[1751408829069,0.83075,2407.1,2407.0,2.42922751]
[1751408829269,2.18465,2407.1,2406.9,0.83079]
[1751408831364,1.3539,2407.1,2406.9,0.83079]
[1751408831873,2.18465,2407.1,2406.9,0.83079]
[1751408833170,1.3539,2407.1,2406.9,0.83079]
[1751408833470,2.18466,2407.1,2406.9,0.83079]
[1751408833672,0.83079,2407.0,2406.8,3.26005751]
[1751408833872,1.4244,2407.0,2406.8,2.42922751]
[1751408834576,1.4244,2407.0,2406.9,0.83082]
[1751408837371,26.9908,2407.2,2407.0,0.83076]
[1751408837671,26.9908,2407.2,2406.9,0.8308]
[1751408837869,2.27647,2407.1,2406.9,0.8308]
[1751408838066,1.4457,2407.0,2406.9,0.8308]
[1751408841175,1.4628,2407.3,2407.2,0.83072]
[1751408841377,26.7468,2407.3,2407.2,0.83072]
[1751408842174,27.57749,2407.3,2407.1,3.25995751]
[1751408843378,26.7468,2407.3,2407.2,0.83072]
[1751408843570,1.4628,2407.3,2407.2,0.83072]
[1751408843771,12.6162,2407.4,2407.3,0.83068]
[1751408843972,37.8992,2407.4,2407.3,0.83068]
[1751408844175,0.83069,2407.3,2407.1,0.83073]
[1751408844473,2.20339,2407.3,2407.1,0.83073]
[1751408845073,1.3727,2407.3,2407.2,0.83072]
[1751408847578,26.6547,2407.3,2407.2,0.83072]
[1751408848872,1.3727,2407.3,2407.2,0.83072]
[1751408849080,0.8642,2407.4,2407.3,0.83068]
[1751408849381,26.1462,2407.4,2407.3,0.83068]
[1751408849581,0.8642,2407.4,2407.3,0.83068]
[1751408849880,26.1452,2407.4,2407.3,0.83068]
[1751408854581,26.1452,2407.4,2407.2,3.25992751]
[1751408854982,25.281,2407.4,2407.2,2.42922751]
[1751408855183,2.3161,2407.3,2407.0,0.8782]
[1751408855482,2.26533,2407.2,2407.0,0.8782]
[1751408855781,1.4346,2407.1,2406.9,0.8308]
[1751408856180,26.7136,2407.1,2406.9,0.8308]
[1751408856678,26.7136,2407.1,2406.8,3.25322751]
[1751408856871,27.54437,2407.1,2406.9,0.83081]
[1751408857173,1.3455,2407.0,2406.9,0.83081]
[1751408859176,2.42922751,2407.4,2406.9,0.83081]
[1751408859177,25.278,2407.3,2406.9,2.07706]
[1751408859382,25.278,2407.3,2407.2,3.25992751]
[1751408860983,14.31493,2407.5,2407.2,2.42922751]
[1751408861176,25.278,2407.4,2407.3,0.83067]
[1751408861377,26.10865,2407.4,2407.3,0.8649]
[1751408861572,27.44725,2407.4,2407.3,0.8649]
[1751408868484,28.69325,2407.4,2407.0,2.42922751]
[1751408868690,0.83075,2407.1,2407.0,0.83078]
[1751408868988,26.10575,2407.1,2407.0,0.83078]
[1751408869185,26.10575,2407.1,2406.9,1.65589]
[1751408869386,0.83079,2407.0,2406.9,1.65589]
[1751408869685,27.78578,2407.1,2406.9,1.65589]
[1751408871788,27.78578,2407.1,2407.0,2.42922751]
[1751408874389,26.955,2407.1,2407.0,2.42922751]
[1751408875189,26.955,2407.1,2407.0,3.26001751]
[1751408875789,27.78575,2407.1,2407.0,3.26001751]
[1751408876289,26.955,2407.1,2407.0,3.26001751]
[1751408877493,2.07655,2407.5,2407.0,2.42922751]
[1751408877693,0.8307,2407.3,2407.2,2.42922751]
[1751408879092,27.44877,2407.4,2407.2,3.25994751]
[1751408879489,0.83068,2407.3,2407.2,2.42922751]
[1751408879894,0.83068,2407.3,2407.2,3.25492751]
[1751408880193,27.44878,2407.4,2407.2,4.08564751]
[1751408880584,0.83068,2407.3,2407.2,4.08564751]
[1751408880994,27.44878,2407.4,2407.2,4.08564751]
[1751408881895,0.83068,2407.3,2407.2,4.08564751]
[1751408882089,27.44876,2407.4,2407.3,0.83068]
[1751408882394,12.57863,2407.5,2407.4,0.83065]
[1751408882593,11.748,2407.5,2407.4,0.83065]
[1751408882891,37.02,2407.5,2407.4,3.25987751]
[1751408884997,37.85061,2407.5,2407.4,2.42922751]
[1751408885198,0.83065,2407.4,2407.2,4.08561751]
[1751408886698,25.27,2407.3,2407.2,4.08561751]
[1751408890503,0.83065,2407.4,2407.2,4.08561751]
[1751408890802,25.268,2407.3,2407.2,4.08561751]
[1751408892003,26.09868,2407.3,2407.2,3.25492751]
[1751408892203,0.83075,2407.1,2407.0,0.8785]
[1751408892909,2.27245,2407.1,2407.0,0.8785]
[1751408898903,0.83079,2407.0,2406.9,2.42922751]
[1751408899108,0.83086,2406.8,2406.7,3.26010751]
[1751408899410,2.42922751,2406.8,2406.3,2.42922751]
[1751408899607,0.83097,2406.5,2406.3,4.07953751]
[1751408900309,2.3076,2406.6,2406.4,0.83099]
[1751408900610,2.25157,2406.5,2406.3,3.24852751]
[1751408900816,2.25157,2406.5,2406.3,4.07954751]
[1751408902516,0.83099,2406.4,2406.3,3.24852751]
[1751408907316,2.25159,2406.5,2406.3,3.24852751]
[1751408907511,2.25159,2406.5,2406.3,4.07955751]
[1751408907814,0.83099,2406.4,2406.3,4.07955751]
[1751408908417,2.25159,2406.5,2406.3,4.07955751]
[1751408908618,0.83099,2406.4,2406.3,3.24852751]
[1751408908917,2.25159,2406.5,2406.3,4.07955751]
[1751408910014,0.83095,2406.6,2406.4,0.83099]
[1751408910215,0.83095,2406.6,2406.5,2.42922751]
[1751408911323,0.83092,2406.6,2406.5,2.42922751]
[1751408911715,0.83092,2406.6,2406.5,3.26018751]
[1751408911921,0.83092,2406.6,2406.5,2.42922751]
[1751408913723,0.83092,2406.6,2406.5,3.26018751]
[1751408913925,0.83092,2406.6,2406.5,2.42922751]
[1751408914627,0.83092,2406.6,2406.5,3.26018751]
[1751408915427,0.83092,2406.6,2406.5,2.42922751]
[1751408921833,0.83092,2406.6,2406.5,3.26018751]
[1751408922031,2.96975,2407.0,2406.5,2.42922751]
[1751408922341,26.09586,2406.8,2406.7,0.83087]
[1751408923432,26.09586,2406.8,2406.7,3.26009751]
[1751408923732,25.265,2406.8,2406.7,3.26009751]
[1751408924322,0.83086,2406.8,2406.7,3.26009751]
[1751408924527,0.83086,2406.8,2406.7,2.42922751]
[1751408925035,0.83086,2406.8,2406.7,3.26011751]
[1751408925333,11.742,2406.9,2406.7,2.42922751]
[1751408925530,11.742,2406.9,2406.7,3.26011751]
[1751408925730,0.83086,2406.8,2406.7,3.26011751]
[1751408926034,11.742,2406.9,2406.7,2.42922751]
[1751408926236,0.83086,2406.8,2406.7,2.42922751]
[1751408927636,12.57284,2406.9,2406.7,3.26010751]
[1751408927832,12.57284,2406.9,2406.7,2.42922751]
[1751408928030,0.83086,2406.8,2406.7,2.42922751]
[1751408929234,0.83086,2406.8,2406.7,3.26011751]
[1751408929435,12.57285,2406.9,2406.7,3.26011751]
[1751408931033,12.57282,2406.9,2406.8,0.83086]
[1751408931841,0.83086,2406.8,2406.7,3.26009751]
[1751408932036,0.83089,2406.7,2406.6,0.8538]
[1751408932245,0.83089,2406.7,2406.2,0.83104]
[1751408932246,0.83099,2406.4,2406.2,0.83104]
[1751408932438,0.83099,2406.4,2406.2,1.69054]
[1751408933241,0.83097,2406.5,2406.3,0.83103]
[1751408933443,1.3272,2406.5,2406.3,2.42922751]
[1751408933743,2.15818,2406.5,2406.3,3.26024751]
[1751408934544,0.83099,2406.4,2406.3,3.26024751]
[1751408935841,2.15818,2406.5,2406.3,3.26024751]
[1751408936439,0.83099,2406.4,2406.3,3.26024751]
[1751408936640,0.83099,2406.4,2406.3,2.42922751]
[1751408937246,0.83099,2406.4,2406.3,3.26024751]
[1751408937444,0.83099,2406.4,2406.3,2.42922751]
[1751408940748,0.83103,2406.3,2406.2,0.8595]
[1751408941147,0.83103,2406.3,2406.2,1.69056]
[1751408941549,0.83103,2406.3,2406.2,0.8595]
[1751408941744,3.40465,2406.5,2406.0,0.83112]
[1751408941745,0.83112,2406.1,2406.0,0.83112]
[1751408941950,2.07762,2406.3,2405.9,1.66264]
[1751408942146,0.83113,2406.0,2405.9,1.66264]
[1751408942349,0.83112,2406.1,2406.0,0.83113]
[1751408942650,3.05928,2406.2,2406.0,3.26035751]
[1751408942847,0.83113,2406.0,2405.9,0.8315]
[1751408943948,0.83113,2406.0,2405.9,1.66267]
[1751408944540,0.83113,2406.0,2405.9,0.8315]
[1751408950554,0.8868,2406.2,2405.9,0.8315]
[1751408950753,13.93962,2406.4,2406.1,2.42922751]
[1751408950953,11.742,2406.4,2406.3,3.26025751]
[1751408951559,14.80438,2406.8,2406.6,0.83092]
[1751408951760,14.80438,2406.8,2406.6,2.42922751]
[1751408952162,0.83089,2406.7,2406.6,3.28402751]
[1751408952562,2.26829,2406.7,2406.6,3.28402751]
[1751408953960,2.26829,2406.7,2406.6,4.11494751]
[1751408958963,0.83089,2406.7,2406.6,4.11494751]
[1751408959163,13.43778,2406.8,2406.7,0.83089]
[1751408959360,0.83089,2406.7,2406.6,4.11492751]
[1751408959759,0.83089,2406.7,2406.6,3.28402751]
[1751408959963,0.83089,2406.7,2406.6,0.8548]
[1751408960159,0.83096,2406.5,2406.4,2.42922751]
[1751408960361,2.07732,2406.6,2406.2,3.32612751]
[1751408960665,0.83103,2406.3,2406.2,0.8969]
[1751408961060,0.83103,2406.3,2406.2,1.72796]
[1751408961360,0.83103,2406.3,2406.2,0.8969]
[1751408966063,0.83106,2406.2,2406.1,2.42922751]
[1751408966263,0.83106,2406.2,2405.9,4.12205751]
[1751408966264,0.83112,2406.1,2405.9,4.12205751]
[1751408966562,1.3687,2406.2,2406.0,0.83113]
[1751408967062,2.19978,2406.2,2406.0,0.83113]
[1751408968066,0.8311,2406.1,2406.0,0.83113]
[1751408968458,2.19979,2406.2,2406.0,0.83113]
[1751408968655,1.3687,2406.2,2406.0,0.83113]
[1751408969159,0.8311,2406.1,2406.0,0.83113]
[1751408969559,0.8311,2406.1,2405.9,3.29092751]
[1751408969560,2.19978,2406.2,2406.1,0.8311]
[1751408969764,2.19978,2406.2,2406.1,3.26032751]
[1751408970363,1.67255,2406.3,2406.1,3.26032751]
[1751408970761,0.8415,2406.3,2406.2,1.66186]
[1751408970966,12.57487,2406.8,2406.6,0.83091]
[1751408971269,12.57486,2406.8,2406.7,2.42922751]
[1751408973572,12.57486,2406.8,2406.7,3.26011751]
[1751408973869,11.744,2406.8,2406.7,3.26011751]
[1751408974368,12.57486,2406.8,2406.7,3.26011751]
[1751408975372,11.744,2406.8,2406.7,3.26011751]
[1751408976272,12.57486,2406.8,2406.7,3.26011751]
[1751408977471,12.57486,2406.8,2406.7,2.42922751]
[1751408978272,0.83089,2406.7,2406.6,0.8566]
[1751408979881,2.16999,2406.7,2406.6,0.8566]
[1751408984577,3.41636,2406.7,2406.3,2.42922751]
[1751408984778,0.83096,2406.5,2406.4,0.8462]
[1751408987779,0.83096,2406.5,2406.4,1.67719]
[1751408987984,0.83096,2406.5,2406.4,0.8462]
[1751408988482,0.83096,2406.5,2406.4,1.67719]